Cogmind - Beta 14 @@@ ROGUE MODE // 2024.08.15 @ 16:57:32 Player: Tyrockal Result: Destroyed by Y-64 Sentinel with KE Penetrator Performance ------------- Evolutions (1) 500 Regions Visited (5) 1000 Robots Destroyed (32) 160 Value Destroyed (755) 755 Prototype IDs (0) 0 Alien Tech Used (0) 0 Bonus (598) 598 TOTAL SCORE: 3013 Bonus ------- Follower Combat Kills 36 Met Imprinter 300 Was Imprinted 300 Friendly Fire -38 Cogmind --------- Core Integrity 0/400 Matter 182/300 Energy 100/100 System Corruption 0% Temperature Warm (172) Movement Core (100) Ox1 Location -6/Proximity Caves Parts ------- > --- POWER (1) -------- (None) > --- PROPULSION (4) --- (None) > --- UTILITY (2) ------ Small Storage Unit > --- WEAPON (2) ------- (None) > --- INVENTORY (8) ---- Armor Integrity Analyzer Authchip [Armor] EM Shotgun Particle Cannon Mini Grenade Launcher GAL Module Peak State ------------ > --- POWER ------------ Ion Engine > --- PROPULSION ------- Carbon-fiber Leg Carbon-fiber Leg Carbon-fiber Leg Carbon-fiber Leg > --- UTILITY ---------- Small Storage Unit Visual Processing Unit > --- WEAPON ----------- EM Shotgun Plasma Cannon > --- INVENTORY -------- Ion Engine Aluminum Leg Armor Integrity Analyzer Authchip [Armor] Particle Cannon Mini Grenade Launcher Mini Grenade Launcher GAL Module [Rating: 24] Favorites ----------- Power Ion Engine Engine Ion Engine Propulsion Carbon-fiber Leg Leg Carbon-fiber Leg Utility Small Storage Unit Device Trap Extractor Storage Small Storage Unit Processor Visual Processing Unit Weapon EM Shotgun Energy Gun EM Shotgun Energy Cannon Plasma Cannon Launcher Mini Grenade Launcher Build | -11 -10 -9 -9 -7 -6 ------- Run | Yrd Mat Mat Min Zio Pro Slots Evolved 2 | . . 2 . . . Power . | . . . . . . Propulsion 2 | . . 2 . . . Utility . | . . . . . . Weapon . | . . . . . . Parts Attached 25 | 7 4 7 1 3 3 Power 4 | 1 . 1 . 1 1 Engine 4 | 1 . 1 . 1 1 Core . | . . . . . . Reactor . | . . . . . . Propulsion 8 | 2 . 5 . . 1 Treads . | . . . . . . Leg 8 | 2 . 5 . . 1 Wheel . | . . . . . . Hover . | . . . . . . Flight . | . . . . . . Utility 3 | 1 2 . . . . Device 1 | . 1 . . . . Storage 1 | 1 . . . . . Processor 1 | . 1 . . . . Hackware . | . . . . . . Protection . | . . . . . . Artifact . | . . . . . . Weapon 10 | 3 2 1 1 2 1 Energy Gun 7 | 3 2 1 1 . . Energy Cannon 2 | . . . . 2 . Ballistic Gun . | . . . . . . Ballistic Cannon . | . . . . . . Launcher 1 | . . . . . 1 Special Weapon . | . . . . . . Impact Weapon . | . . . . . . Slashing Weapon . | . . . . . . Piercing Weapon . | . . . . . . Special Melee Weapon . | . . . . . . Unidentified Prototypes . | . . . . . . Parts Lost 11 | . . 1 . . 10 Power 2 | . . . . . 2 Propulsion 5 | . . . . . 5 Utility 1 | . . . . . 1 Weapon 3 | . . 1 . . 2 Highest Loss Streak 10 | . . 1 . . 10 To Critical Strikes . | . . . . . . Average Slot Usage (%) 98 | . 97 95 100 99 80 Engine 11 | . 14 11 11 11 3 Leg 41 | . 28 39 44 44 34 Storage 11 | . 14 11 11 11 11 Processor 10 | . 9 11 11 11 9 Energy Gun 20 | . 28 21 22 19 . Energy Cannon 1 | . . . . 2 18 Peak Build Rating 24 | 6 11 21 20 24 24 Average Rating 19 | 4 9 18 20 21 20 On Entrance 13 | . 6 11 19 20 24 Naked Turns . | . . . . . . Heaviest Build 21 | 13 18 16 16 21 21 Greatest Support 60 | 20 20 60 60 60 60 Greatest Overweight (x) 1 | 1 . . . . . Average Overweight (x) . | . . . . . . Largest Inventory Capacity 8 | 8 8 8 8 8 8 Average Capacity 7 | 7 8 8 8 8 8 Most Carried 8 | 4 8 8 6 8 8 Average Carried 7 | 1 7 7 6 7 7 Final Capacity 8 | 8 8 8 8 8 8 Final Carried 8 | 4 8 7 6 8 6 Class Distribution -------------------- 100% | Mutant Dominant Class ---------------- Mutant | -10/Materials Mutant | -9/Materials Mutant | -9/Mines Mutant | -7/Zion Mutant | -6/Proximity Caves Resources | -11 -10 -9 -9 -7 -6 ----------- Run | Yrd Mat Mat Min Zio Pro Matter Collected 431 | 248 62 70 10 30 11 Remotely . | . . . . . . Salvage Created 881 | . 311 372 76 . 122 Parts 56 | . 19 26 6 . 5 Haulers Intercepted . | . . . . . . Recyclers Shooed . | . . . . . . Parts Field Recycled . | . . . . . . Retrieved Matter . | . . . . . . Parts Self-Destructed 8 | . . . . . 8 Prevented . | . . . . . . Kills | -11 -10 -9 -9 -7 -6 ------- Run | Yrd Mat Mat Min Zio Pro Combat Hostiles Destroyed 27 | . 7 10 4 . 6 Guns 20 | . 7 9 4 . . Cannons 2 | . . . . . 2 AOE 5 | . . 1 . . 4 Classes Destroyed 7 | . 5 . . . 2 Worker 2 | . 2 . . . . Operator 2 | . 1 1 . . . Drone 1 | . . . . . 1 Watcher 1 | . 1 . . . . Swarmer 12 | . 3 3 4 . 2 Grunt 12 | . 4 7 . . 1 Duelist 2 | . . . . . 2 Best Kill Streak 5 | . 5 3 4 . 4 Combat Bots Only 4 | . 3 3 4 . 4 Max Kills in Single Turn 2 | . 2 1 1 . 1 Gunslinging 1 | . 1 . . . . Exploded 1 | . . 1 . . 1 Melee . | . . . . . . Uniques/NPCs Destroyed . | . . . . . . Combat | -11 -10 -9 -9 -7 -6 -------- Run | Yrd Mat Mat Min Zio Pro Hostile Shots Fired 118 | . 30 26 13 . 49 Missed 28 | . 10 8 . . 10 Damage Taken 1737 | . 251 221 101 . 1164 Core 547 | . 128 8 18 . 393 Absorbed by Shields . | . . . . . . Core Remaining (%) 74 | 100 48 . . . . Volleys Fired 58 | . 16 17 9 . 16 Largest 2 | . 2 2 2 . 2 Hottest 148 | . 90 90 90 . 148 Shots Fired 109 | . 31 34 18 . 26 Gun 83 | . 31 34 18 . . Cannon 19 | . . . . . 19 Launcher 7 | . . . . . 7 Special . | . . . . . . Kinetic . | . . . . . . Thermal 20 | . 1 . . . 19 Explosive 7 | . . . . . 7 Electromagnetic 82 | . 30 34 18 . . Robot Hit Streak 17 | . 14 17 9 . 5 Robot Miss Streak 6 | . 2 4 6 . 2 Penetration Max . | . . . . . . Secondary Targets 3 | . 2 1 . . . Max Gunslinging Chain 1 | . 1 1 . . . Shots Hit Robots 75 | . 24 26 11 . 14 Core Hits 57 | . 18 21 7 . 11 Critical Kills . | . . . . . . Critical Parts Destroyed . | . . . . . . Critical Strikes . | . . . . . . Melee Attacks . | . . . . . . Impact . | . . . . . . Slashing . | . . . . . . Piercing . | . . . . . . Sneak Attacks . | . . . . . . Combat Hostiles . | . . . . . . Follow-up Attacks . | . . . . . . Damage Inflicted 1582 | . 427 351 126 . 678 Guns 828 | . 388 314 126 . . Cannons 180 | . . . . . 180 Explosions 574 | . 39 37 . . 498 Melee . | . . . . . . Ramming . | . . . . . . Kinetic . | . . . . . . Thermal 256 | . 39 37 . . 180 Explosive 498 | . . . . . 498 Electromagnetic 828 | . 388 314 126 . . Impact . | . . . . . . Slashing . | . . . . . . Piercing . | . . . . . . Highest Corruption . | . . . . . . Average Corruption . | . . . . . . Corruption Purged . | . . . . . . Corruption Blocked . | . . . . . . Overload Shots . | . . . . . . Overflow Damage 107 | . 9 . . . 98 Projectiles 6 | . . . . . 6 Explosions 101 | . 9 . . . 92 Melee . | . . . . . . Knockbacks . | . . . . . . Impact . | . . . . . . Kinetic . | . . . . . . Secondary . | . . . . . . Self-Inflicted Damage 327 | . 24 14 . . 289 Shots 9 | . 1 1 . . 7 Rammed . | . . . . . . Targets Rammed . | . . . . . . Kicked . | . . . . . . Crushed . | . . . . . . Highest Temperature 727 | . 358 111 189 . 727 Average Temperature 162 | . 136 37 96 . 370 Received Heat Transfer 399 | . 126 102 . . 171 Effects 13 | . 1 . . . 12 Shutdowns 2 | . 1 . . . 1 Energy Bleed 1 | . . . . . 1 Interference 4 | . . . . . 4 Matter Decay 1 | . . . . . 1 Short Circuit 1 | . . . . . 1 Damage (minor) 2 | . . . . . 2 Damage (core) 2 | . . . . . 2 Siege Activations . | . . . . . . Robots Corrupted . | . . . . . . Combat Hostiles . | . . . . . . Parts Fried 3 | . 2 1 . . . Impact Corruptions . | . . . . . . Robots Melted . | . . . . . . Combat Hostiles . | . . . . . . Parts Melted 2 | . . . . . 2 Heat Transferred 435 | . 50 50 . . 335 Parts Sabotaged . | . . . . . . Parts Stolen . | . . . . . . Parts Stripped . | . . . . . . Power Chain Reactions 2 | . 1 1 . . . Alert | -11 -10 -9 -9 -7 -6 ------- Run | Yrd Mat Mat Min Zio Pro Peak Influence 229 | . 229 224 187 . . Initial 96 | . . 96 83 . . Average 99 | . 85 95 130 . . Maximum Alert Level 1 | . 1 1 . . . Low Security (%) 96 | 100 92 95 100 . . Level 1 3 | . 7 4 . . . Level 2 . | . . . . . . Level 3 . | . . . . . . Level 4 . | . . . . . . Level 5 . | . . . . . . High Security . | . . . . . . Max Security . | . . . . . . Squads Dispatched 4 | . 3 . . . 1 Investigation . | . . . . . . Extermination . | . . . . . . Reinforcement 3 | . 3 . . . . Assault 1 | . . . . . 1 Garrison . | . . . . . . Intercept . | . . . . . . Searches Triggered . | . . . . . . Construction Impeded . | . . . . . . Haulers Reinforced . | . . . . . . Active Scanning Responses . | . . . . . . Cargo Convoy Interrupts . | . . . . . . Stealth | -11 -10 -9 -9 -7 -6 --------- Run | Yrd Mat Mat Min Zio Pro Distress Signals 1 | . . . . . 1 Communications Jammed . | . . . . . . Distress Signals . | . . . . . . Times Spotted 36 | . 11 12 4 . 9 Peak Tracking Total 8 | . 3 4 4 . 8 Tactical Retreats 1 | . 1 . . . . Traps | -11 -10 -9 -9 -7 -6 ------- Run | Yrd Mat Mat Min Zio Pro Traps Triggered . | . . . . . . Indirectly . | . . . . . . Trap Hack Attempts . | . . . . . . Triggered . | . . . . . . Disarmed . | . . . . . . Reprogrammed . | . . . . . . Reused . | . . . . . . Traps Extracted . | . . . . . . Installed . | . . . . . . Triggered . | . . . . . . Machines | -11 -10 -9 -9 -7 -6 ---------- Run | Yrd Mat Mat Min Zio Pro Machines Disabled . | . . . . . . Max in Single Turn . | . . . . . . Machines Repaired . | . . . . . . Machines Dismantled . | . . . . . . Machines Sabotaged . | . . . . . . Overloaded Fab Kills . | . . . . . . Hacking | -11 -10 -9 -9 -7 -6 --------- Run | Yrd Mat Mat Min Zio Pro Machines Accessed 3 | . 1 2 . . . Terminals 3 | . 1 2 . . . Fabricators . | . . . . . . Repair Stations . | . . . . . . Recycling Units . | . . . . . . Scanalyzers . | . . . . . . Garrison Access . | . . . . . . Total Hacks 8 | . 3 5 . . . Successful 5 | . 1 4 . . . Failed 3 | . 2 1 . . . Catastrophic . | . . . . . . Database Lockouts . | . . . . . . Manual 3 | . . . . 3 . Terminals 8 | . 3 5 . . . Fabricators . | . . . . . . Repair Stations . | . . . . . . Recycling Units . | . . . . . . Scanalyzers . | . . . . . . Garrison Access . | . . . . . . Terminal Hacks 5 | . 1 4 . . . Alert Level 1 | . . 1 . . . Unreport Threat 1 | . . 1 . . . Assault Status 1 | . . 1 . . . Registered Components 1 | . . 1 . . . Zone Layout 1 | . 1 . . . . Fabricator Hacks . | . . . . . . Repair Station Hacks . | . . . . . . Recycling Unit Hacks . | . . . . . . Scanalyzer . | . . . . . . Garrison Access Hacks . | . . . . . . Unauthorized Hacks . | . . . . . . Terminals . | . . . . . . Fabricators . | . . . . . . Repair Stations . | . . . . . . Recycling Units . | . . . . . . Scanalyzers . | . . . . . . Garrison Access . | . . . . . . Data Cores Recovered 1 | . . 1 . . . Used . | . . . . . . Hacking Detections 2 | . 1 1 . . . Full Trace Events 1 | . 1 . . . . Feedback Events . | . . . . . . Feedback Blocked . | . . . . . . Robot Schematics Acquired 2 | . . . . 2 . Robots Built . | . . . . . . Authchips . | . . . . . . Time . | . . . . . . Total Robot Build Rating . | . . . . . . Part Schematics Acquired 15 | . . . . 15 . Parts Built . | . . . . . . Authchips . | . . . . . . Time . | . . . . . . Total Part Build Rating . | . . . . . . Parts Repaired . | . . . . . . Time . | . . . . . . Parts Recycled . | . . . . . . Recycled Matter . | . . . . . . Retrieved Matter . | . . . . . . Retrieved Components . | . . . . . . Parts Scanalyzed . | . . . . . . Part Schematics Acquired . | . . . . . . Parts Damaged . | . . . . . . Bothacking | -11 -10 -9 -9 -7 -6 ------------ Run | Yrd Mat Mat Min Zio Pro Used RIF Installer . | . . . . . . Robots Hacked . | . . . . . . Non-combat . | . . . . . . Combat . | . . . . . . Robot Hacks Applied . | . . . . . . Relay Couplers Released . | . . . . . . Fabnet Peak Effective % . | . . . . . . Robots Rewired . | . . . . . . Allies Hacked . | . . . . . . Hacks Repelled . | . . . . . . Allies | -11 -10 -9 -9 -7 -6 -------- Run | Yrd Mat Mat Min Zio Pro Total Allies 7 | . . . 3 4 . Largest Group 7 | . . . 3 7 2 Highest-Rated Group 200 | . . . 40 200 32 Highest-Rated Ally 41 | . . . 16 41 16 Total Orders . | . . . . . . Ally Attacks 32 | . . . . . 32 Total Damage 229 | . . . . . 229 Kills 2 | . . . . . 2 Allies Corrupted . | . . . . . . Allies Melted . | . . . . . . Intel | -11 -10 -9 -9 -7 -6 ------- Run | Yrd Mat Mat Min Zio Pro Robot Analysis Total . | . . . . . . Derelict Logs Recovered 5 | . . . 3 2 . Drone Launches . | . . . . . . Drone Recoveries . | . . . . . . Exploration | -11 -10 -9 -9 -7 -6 ------------- Run | Yrd Mat Mat Min Zio Pro Turns Passed 2583 | 62 286 371 372 1428 64 Spaces Moved 1839 | 41 138 219 266 1168 7 Core 2 | 2 . . . . . Treads . | . . . . . . Legs 1837 | 39 138 219 266 1168 7 Wheels . | . . . . . . Hover . | . . . . . . Flight . | . . . . . . Fastest Speed 50 | 50 120 120 120 120 120 Average Speed 119 | 118 120 120 120 120 120 Slowest Speed 190 | 190 120 120 120 120 120 Overloaded Moves . | . . . . . . Propulsion Burnouts . | . . . . . . Robots Hopped . | . . . . . . Cave-ins Triggered . | . . . . . . Exploration Rate (%) 32 | 4 14 22 63 91 3 Regions Visited 5 Branch Regions 3 Pre-discovered Areas 2 | . . . 1 1 . Known Exits Taken . | . . . . . . Unknown Exits Taken 5 | 1 1 1 1 1 . Scrap Searched 4 | . . . 1 3 . Spaces Dug . | . . . . . . Terrain Destroyed 38 | . 2 2 . . 34 Melee . | . . . . . . Projectile . | . . . . . . AOE 38 | . 2 2 . . 34 Terrain Rammed . | . . . . . . Walls Destroyed . | . . . . . . Machines Disabled . | . . . . . . Actions | -11 -10 -9 -9 -7 -6 --------- Run | Yrd Mat Mat Min Zio Pro Total 2105 | 51 226 297 301 1194 36 Wait 151 | . 62 36 26 17 10 Move 1834 | 40 137 218 265 1167 7 Hop . | . . . . . . Pick Up 20 | 4 5 7 . 4 . Fast Attach 11 | 6 2 2 . 1 . Attach 3 | . . . 1 . 2 Detach . | . . . . . . Swap 11 | 1 2 5 . 2 1 Drop 17 | . 2 12 . 3 . Fire 58 | . 16 17 9 . 16 Melee . | . . . . . . Ram . | . . . . . . Kick . | . . . . . . Crush . | . . . . . . Escape Stasis . | . . . . . . Rewire . | . . . . . . Trap . | . . . . . . Miscellaneous . | . . . . . . Route ------- -11/Scrapyard -10/Materials -9/Materials -9/Mines -7/Zion -6/Proximity Caves History --------- Turn | Location | Event 21 | -11/Scrapyard | Discovered new exit (range 15) 63 | -11/Scrapyard | Entered Materials 206 | -10/Materials | Discovered new exit (range 16) 300 | -10/Materials | Build established: Mutant 324 | -10/Materials | Core integrity fell below 50% 349 | -10/Materials | Entered another Materials area 349 | -9/Materials | Evolved 2 slots: Propulsion x2 689 | -9/Materials | Discovered new exit (range 11) 720 | -9/Materials | Entered Mines 730 | -9/Mines | Met a Derelict bent on vengeance 751 | -9/Mines | Learned location of Storage (-8) 755 | -9/Mines | Learned Materials security intel 768 | -9/Mines | Assisted by bots powering up and referring to "LRC-V3" 1086 | -9/Mines | A Derelict revealed a hidden shortcut to a safe place 1090 | -9/Mines | Learned Materials garrison access intel 1092 | -9/Mines | Entered Zion 1092 | -7/Zion | Accompanied by 3 allies 1167 | -7/Zion | Learned 12 Factory zone layouts 1236 | -7/Zion | Given A8's code to call for help 1245 | -7/Zion | Received a hallucinogenic algorithm 1553 | -7/Zion | Found GAL Module 1850 | -7/Zion | Met Imprinter 1872 | -7/Zion | Imprinted 1874 | -7/Zion | Declared Zion's savior 2270 | -7/Zion | Learned location of Data Miner (-6) 2499 | -7/Zion | Discovered new exit (range 17) 2520 | -7/Zion | Entered Proximity Caves 2520 | -6/Proximity Caves | Accompanied by 2 allies 2523 | -6/Proximity Caves | Spotter reported a threat 2523 | -6/Proximity Caves | Spotter reported a threat 2548 | -6/Proximity Caves | Attracted the attention of an 0b10 outpost 2557 | -6/Proximity Caves | Core integrity fell below 50% 2582 | -6/Proximity Caves | Core integrity fell below 20% 2584 | -6/Proximity Caves | Destroyed by Y-64 Sentinel with KE Penetrator Last Messages --------------- 02574_ Destroyed Carbon-fiber Leg. 02574_ Ion Engine destroyed. 02574_ Destroyed Ion Engine. 02576_ Destroyed Lgt. Angular Momentum Engine. 02576_ G-50 Soldier destroyed. 02576_ Visual Processing Unit destroyed. 02576_ Destroyed Visual Processing Unit. 02578_ Carbon-fiber Leg destroyed. 02578_ Destroyed Carbon-fiber Leg. 02579_ Carbon-fiber Leg destroyed. 02580_ The unstable cave ceiling collapses. 02580_ Plasma Cannon destroyed. 02580_ Destroyed Plasma Cannon. 02581_ Hover Unit fries itself beyond repair. 02581_ Penetrated by Slug. 02582_ L-41 Fighter destroyed. 02582_ Mni. Grenade Launcher destroyed. 02582_ Destroyed Mni. Grenade Launcher. 02584_ The unstable cave ceiling collapses. 02584_ Penetrated by Slug. Map ----- +----------------------------------------------------+ | ?????????????????????????????????????????????????? | | ?????????????????????????????????????????????????? | | ?????????????????????????????????????????????????? | | ?????????????????????????????????????????????????? | | ?????????????????????????????????????????????????? | | ?????????????????????????????????????????????????? | | ?????????????????????????????????????????????????? | | ?????????????????????????????????????????????????? | | ?????????????????????????????????????????????????? | | ?????????????????????????????????????????????????? | | ?????????????????????????????????????????????????? | | ?????????????????????????????????????????????????? | | ?????????????????????????????????????????????????? | | ?????????????????????????????????????????????????? | | ?????????????????????????????????????????????????? | | ?????????????????????????????????????????????????? | | ?????????????????????????????????????????????????? | | ?????????????????????????????????????????????????? | | ????????????????????????####?????????????????????? | | ???????????????????????? #????##???????????????? | | ????????????????????????g #??? ##??????????????? | | ??????????????????????### #??? #??????????????? | | ?????????????????????## # ### #??????????????? | | ????????????????????## #??????????????? | | ???????????????????## % #???#?? #???????? | | ???????????????????# @ ### # ????????? | | ???????????????????## %+ ??????????? | | ????????????????????# #???????????? | | ????????????????????# # Y # #???????????? | | ????????????????????# ##?????????????? | | ????????????????????# % ##??????????????? | | ???????????????????? # # #???????????????? | | ??????????????????? ### ##???????????????? | | ?????????????????? ??# #????????????????? | | ?????????????????#### ? ??## #???????????????? | | ????????????????????# ? ????# ??????????????? | | ???????????????????? ? ????? ????????????? | | ???????????????????? ? ?????? #####???????????? | | ???????????????????#??#?????? ##???????????????? | | ?????????????????????????????? ##????????????????? | | ??????????????????????????????##?????????????????? | | ?????????????????????????????????????????????????? | | ?????????????????????????????????????????????????? | | ?????????????????????????????????????????????????? | | ?????????????????????????????????????????????????? | | ?????????????????????????????????????????????????? | | ?????????????????????????????????????????????????? | | ?????????????????????????????????????????????????? | | ?????????????????????????????????????????????????? | | ?????????????????????????????????????????????????? | +----------------------------------------------------+ Best States ------------- Heat Dissipation 28 Energy Generation 10 Energy Capacity 250 Matter Stores 300 Matter Capacity 300 Sight Range 18 Terrain Scan Density 10 Evasion (%) 55 Authchip Count 1 Trap Extractor Capacity 4 Item Schematics ----------------- Adv. Terrain Scan Processor | -7/Zion | Archive Power Amplifier | -7/Zion | Archive Hvy. Rocket Launcher | -7/Zion | Archive Coil Gun | -7/Zion | Archive Med. Reactive Plating | -7/Zion | Archive Matter Compressor | -7/Zion | Archive Lyr. Light Armor Plating | -7/Zion | Archive Remote Force Field | -7/Zion | Archive Wave Gun | -7/Zion | Archive Imp. Melee Analysis Suite | -7/Zion | Archive Imp. Medium Treads | -7/Zion | Archive Arm. Huge Wheel | -7/Zion | Archive Fusion Compressor | -7/Zion | Archive Focal Shield | -7/Zion | Archive Imp. Salvage Targeting Computer | -7/Zion | Archive Robot Schematics ------------------ R-06 Scavenger | -7/Zion | Archive A-02 Transporter | -7/Zion | Archive Fabricated ------------ Nothing Alien Tech Used ----------------- None Achievements -------------- Everything Is Under Control Challenges ------------ None Game ------ Seed AdvancedLightningMinigun Manual? 0 Play Time 00:22:59 Cumulative 11.8 hours Start 2024.08.10 @ 10:53:47 End 2024.08.15 @ 16:57:32 Sessions 4 Manual Loads 0 Difficulty Rogue Special Mode None Game No. 21 Rogue 21 Adventurer 0 Explorer 0 Win Type - Total 0 Types 0/0/0/0/0/0/0/0/0 Lore% 11 Gallery% 22 Achievement% 16 Wizard Run 0 Options --------- Layout 1 ASCII 0 Keyboard 0 Movement Mouse Keybinds 0 Fullscreen 1 Font 24/Smallcaps Map View 50x35 Zoom Use 0% Tactical HUD 1 Map Filters NONE Filters NONE Steam 1 RUN: 2d10b0bf-111c-4fa1-b6ff-d0ff24b81705